Cogmind - Beta 14 @@@ ROGUE MODE // 2025.01.07 @ 23:25:28 Player: MadBadger Result: Destroyed by C-17 Slicer with Blade Saw Performance ------------- Evolutions (2) 1000 Regions Visited (4) 800 Robots Destroyed (64) 320 Value Destroyed (1883) 1883 Prototype IDs (4) 80 Alien Tech Used (0) 0 Bonus (0) 0 TOTAL SCORE: 4083 Bonus ------- None Cogmind --------- Core Integrity 0/550 Matter 198/300 Energy 59/100 System Corruption 0% Temperature Cool (0) Movement Core (500) Ox9 Location -8/Materials Parts ------- > --- POWER (1) -------- (None) > --- PROPULSION (4) --- (None) > --- UTILITY (2) ------ Large Storage Unit > --- WEAPON (4) ------- Improved EM Shotgun Assault Cannon > --- INVENTORY (15) --- Light Nuclear Core Light Nuclear Core Improved Terrain Scanner Mining Laser Plasma Cutter Peak State ------------ > --- POWER ------------ Light Deuterium Engine > --- PROPULSION ------- Improved Flight Unit Improved VTOL Module Improved VTOL Module > --- UTILITY ---------- Large Storage Unit Improved Signal Interpreter > --- WEAPON ----------- Heavy Assault Rifle Improved Assault Rifle Assault Cannon Katana > --- INVENTORY -------- Light Nuclear Core Light Nuclear Core Improved Terrain Scanner Improved EM Shotgun Assault Cannon Rocket Launcher Rocket Launcher Mining Laser Plasma Cutter [Rating: 31] Favorites ----------- Power Light Ion Engine Engine Light Ion Engine Power Core Light Nuclear Core Propulsion Flight Unit Leg Aluminum Leg Flight Unit Flight Unit Utility Improved Terrain Scanner Device Improved Terrain Scanner Storage Small Storage Unit Processor Signal Interpreter Weapon Heavy Assault Rifle Energy Gun EM Pulse Gun Ballistic Gun Heavy Assault Rifle Ballistic Cannon Assault Cannon Launcher Grenade Launcher Slashing Weapon Katana Build | -11 -10 -10 -9 -8 ------- Run | Yrd Mat Min Mat Mat Slots Evolved 4 | . . . 2 2 Power . | . . . . . Propulsion 2 | . . . 1 1 Utility . | . . . . . Weapon 2 | . . . 1 1 Parts Attached 59 | 6 6 14 21 12 Power 8 | 1 . 2 4 1 Engine 6 | 1 . 2 2 1 Core 2 | . . . 2 . Reactor . | . . . . . Propulsion 21 | 2 2 8 7 2 Treads . | . . . . . Leg 7 | 2 2 3 . . Wheel . | . . . . . Hover . | . . . . . Flight 14 | . . 5 7 2 Utility 7 | 1 1 2 2 1 Device 3 | . . 2 1 . Storage 2 | 1 . . 1 . Processor 2 | . 1 . . 1 Hackware . | . . . . . Protection . | . . . . . Artifact . | . . . . . Weapon 23 | 2 3 2 8 8 Energy Gun 4 | 1 1 . 1 1 Energy Cannon . | . . . . . Ballistic Gun 12 | 1 2 1 5 3 Ballistic Cannon 3 | . . . 2 1 Launcher 3 | . . 1 . 2 Special Weapon . | . . . . . Impact Weapon . | . . . . . Slashing Weapon 1 | . . . . 1 Piercing Weapon . | . . . . . Special Melee Weapon . | . . . . . Unidentified Prototypes 4 | . . . 4 . Parts Lost 29 | . 1 7 11 10 Power 6 | . . 2 3 1 Propulsion 13 | . . 4 6 3 Utility 1 | . . . . 1 Weapon 9 | . 1 1 2 5 Highest Loss Streak 6 | . 1 4 3 6 To Critical Strikes . | . . . . . Average Slot Usage (%) 90 | . 90 95 92 83 Engine 7 | . 14 12 5 3 Core 2 | . . . 4 2 Leg 3 | . 27 6 . . Flight 23 | . . 19 28 27 Device 7 | . . 8 11 4 Storage 11 | . 14 14 11 9 Processor 2 | . 6 5 . 4 Ballistic Gun 20 | . 23 17 20 20 Ballistic Cannon 5 | . . . 9 6 Launcher 2 | . . 9 1 . Peak Build Rating 31 | 6 7 11 28 31 Average Rating 17 | 4 6 8 18 27 On Entrance 9 | . 6 7 11 24 Naked Turns . | . . . . . Heaviest Build 40 | 12 12 15 39 40 Greatest Support 20 | 20 20 20 15 19 Greatest Overweight (x) 9 | 2 3 3 4 9 Average Overweight (x) 1 | . . . 1 1 Largest Inventory Capacity 15 | 8 8 8 15 15 Average Capacity 10 | 7 8 8 10 15 Most Carried 11 | 2 5 8 11 10 Average Carried 7 | . 4 6 7 8 Final Capacity 15 | 8 8 8 15 15 Final Carried 8 | 2 5 8 8 5 Class Distribution -------------------- 35% | Scavenger-Skirmisher 30% | Mutant 14% | Skirmisher 12% | Scavenger-Mutant 5% | Gunner Dominant Class ---------------- Mutant | -10/Materials Scavenger-Mutant | -10/Mines Scavenger-Skirmisher | -9/Materials Scavenger-Skirmisher | -8/Materials Resources | -11 -10 -10 -9 -8 ----------- Run | Yrd Mat Min Mat Mat Matter Collected 1645 | 211 161 186 717 370 Remotely . | . . . . . Salvage Created 1973 | . 225 74 1079 595 Parts 132 | . 16 5 66 45 Haulers Intercepted 1 | . . . 1 . Recyclers Shooed 3 | . 1 . 1 1 Parts Field Recycled . | . . . . . Retrieved Matter . | . . . . . Parts Self-Destructed . | . . . . . Prevented . | . . . . . Kills | -11 -10 -10 -9 -8 ------- Run | Yrd Mat Min Mat Mat Combat Hostiles Destroyed 52 | . 4 8 26 14 Guns 31 | . 3 4 13 11 Cannons 8 | . . . 7 1 AOE 13 | . 1 4 6 2 Classes Destroyed 17 | . 2 3 8 4 Worker 2 | . . . 1 1 Builder 1 | . . . . 1 Tunneler 3 | . . . 3 . Hauler 1 | . . . 1 . Recycler 1 | . . . 1 . Mechanic 1 | . . . . 1 Operator 1 | . . . 1 . Watcher 6 | . 1 . 3 2 Swarmer 10 | . . 3 4 3 Cutter 1 | . . . . 1 Grunt 24 | . 4 . 12 8 Brawler 1 | . . . 1 . Duelist 2 | . . . 2 . Sentry 8 | . . . 7 1 Demolisher 1 | . . 1 . . Hunter 1 | . . . . 1 Assembled 4 | . . 4 . . Best Kill Streak 6 | . 2 3 6 6 Combat Bots Only 5 | . 2 3 4 5 Max Kills in Single Turn 3 | . 1 2 3 3 Gunslinging 1 | . . . 1 1 Exploded 2 | . 1 2 1 1 Melee . | . . . . . Uniques/NPCs Destroyed . | . . . . . Combat | -11 -10 -10 -9 -8 -------- Run | Yrd Mat Min Mat Mat Hostile Shots Fired 280 | . 19 28 102 131 Missed 79 | . 7 6 30 36 Damage Taken 3109 | . 207 459 896 1547 Core 810 | . . 106 152 552 Absorbed by Shields . | . . . . . Core Remaining (%) 73 | 100 . 57 62 . Volleys Fired 136 | . 18 14 57 47 Largest 4 | . 2 2 3 4 Hottest 117 | . 60 50 111 117 Shots Fired 334 | . 36 26 160 112 Gun 262 | . 36 22 116 88 Cannon 54 | . . . 34 20 Launcher 18 | . . 4 10 4 Special . | . . . . . Kinetic 308 | . 29 22 150 107 Thermal . | . . . . . Explosive 18 | . . 4 10 4 Electromagnetic 8 | . 7 . . 1 Robot Hit Streak 14 | . 14 7 8 10 Robot Miss Streak 4 | . 2 3 4 3 Penetration Max 1 | . . . . 1 Secondary Targets 5 | . . 2 2 1 Max Gunslinging Chain 1 | . . 1 1 1 Shots Hit Robots 221 | . 27 16 102 76 Core Hits 122 | . 12 12 55 43 Critical Kills . | . . . . . Critical Parts Destroyed 1 | . . . . 1 Critical Strikes 2 | . . . 1 1 Destroy 1 | . . . . 1 Blast 1 | . . . 1 . Melee Attacks . | . . . . . Impact . | . . . . . Slashing . | . . . . . Piercing . | . . . . . Sneak Attacks . | . . . . . Combat Hostiles . | . . . . . Follow-up Attacks . | . . . . . Damage Inflicted 4535 | . 319 313 2353 1550 Guns 2362 | . 288 140 1004 930 Cannons 776 | . . . 554 222 Explosions 1381 | . 31 167 791 392 Melee . | . . . . . Ramming 16 | . . 6 4 6 Kinetic 3047 | . 206 140 1558 1143 Thermal 31 | . 31 . . . Explosive 1350 | . . 167 791 392 Electromagnetic 91 | . 82 . . 9 Impact . | . . . . . Slashing . | . . . . . Piercing . | . . . . . Highest Corruption . | . . . . . Average Corruption . | . . . . . Corruption Purged . | . . . . . Corruption Blocked . | . . . . . Overload Shots . | . . . . . Overflow Damage 28 | . 5 16 7 . Projectiles 2 | . . . 2 . Explosions 26 | . 5 16 5 . Melee . | . . . . . Knockbacks 13 | . . . 10 3 Impact . | . . . . . Kinetic 10 | . . . 8 2 Secondary 3 | . . . 2 1 Self-Inflicted Damage 134 | . 34 49 48 3 Shots 4 | . 1 2 1 . Rammed 6 | . . 2 1 3 Targets Rammed 6 | . . 2 1 3 Kicked . | . . . . . Crushed . | . . . . . Highest Temperature 238 | . 54 14 156 238 Average Temperature 52 | . 24 9 47 73 Received Heat Transfer 1125 | . 132 9 309 675 Siege Activations . | . . . . . Robots Corrupted . | . . . . . Combat Hostiles . | . . . . . Parts Fried . | . . . . . Impact Corruptions . | . . . . . Robots Melted . | . . . . . Combat Hostiles . | . . . . . Parts Melted . | . . . . . Heat Transferred 50 | . 50 . . . Parts Sabotaged . | . . . . . Parts Stolen . | . . . . . Parts Stripped . | . . . . . Power Chain Reactions 1 | . 1 . . . Alert | -11 -10 -10 -9 -8 ------- Run | Yrd Mat Min Mat Mat Peak Influence 391 | . 148 127 391 365 Initial 152 | . . 57 . 152 Average 173 | . 78 53 234 211 Maximum Alert Level 1 | . . . 1 1 Low Security (%) 60 | 100 100 100 37 52 Level 1 39 | . . . 62 47 Level 2 . | . . . . . Level 3 . | . . . . . Level 4 . | . . . . . Level 5 . | . . . . . High Security . | . . . . . Max Security . | . . . . . Squads Dispatched 6 | . . . 1 5 Investigation . | . . . . . Extermination . | . . . . . Reinforcement 6 | . . . 1 5 Assault . | . . . . . Garrison . | . . . . . Intercept . | . . . . . Searches Triggered . | . . . . . Construction Impeded 1 | . . . . 1 Haulers Reinforced . | . . . . . Active Scanning Responses . | . . . . . Cargo Convoy Interrupts . | . . . . . Stealth | -11 -10 -10 -9 -8 --------- Run | Yrd Mat Min Mat Mat Distress Signals 2 | . 1 . 1 . Communications Jammed . | . . . . . Distress Signals . | . . . . . Times Spotted 82 | . 8 11 36 27 Peak Tracking Total 5 | . 5 3 5 5 Tactical Retreats 5 | . 2 . 1 2 Traps | -11 -10 -10 -9 -8 ------- Run | Yrd Mat Min Mat Mat Traps Triggered 2 | . 2 . . . Indirectly . | . . . . . Trap Hack Attempts . | . . . . . Triggered . | . . . . . Disarmed . | . . . . . Reprogrammed . | . . . . . Reused . | . . . . . Traps Extracted . | . . . . . Installed . | . . . . . Triggered . | . . . . . Machines | -11 -10 -10 -9 -8 ---------- Run | Yrd Mat Min Mat Mat Machines Disabled 3 | . . . 3 . Max in Single Turn 1 | . . . 1 . Machines Repaired . | . . . . . Machines Dismantled . | . . . . . Machines Sabotaged . | . . . . . Overloaded Fab Kills . | . . . . . Hacking | -11 -10 -10 -9 -8 --------- Run | Yrd Mat Min Mat Mat Machines Accessed . | . . . . . Terminals . | . . . . . Fabricators . | . . . . . Repair Stations . | . . . . . Recycling Units . | . . . . . Scanalyzers . | . . . . . Garrison Access . | . . . . . Total Hacks . | . . . . . Successful . | . . . . . Failed . | . . . . . Catastrophic . | . . . . . Database Lockouts . | . . . . . Manual . | . . . . . Terminals . | . . . . . Fabricators . | . . . . . Repair Stations . | . . . . . Recycling Units . | . . . . . Scanalyzers . | . . . . . Garrison Access . | . . . . . Terminal Hacks . | . . . . . Fabricator Hacks . | . . . . . Repair Station Hacks . | . . . . . Recycling Unit Hacks . | . . . . . Scanalyzer . | . . . . . Garrison Access Hacks . | . . . . . Unauthorized Hacks . | . . . . . Terminals . | . . . . . Fabricators . | . . . . . Repair Stations . | . . . . . Recycling Units . | . . . . . Scanalyzers . | . . . . . Garrison Access . | . . . . . Data Cores Recovered 1 | . . . 1 . Used . | . . . . . Hacking Detections . | . . . . . Full Trace Events . | . . . . . Feedback Events . | . . . . . Feedback Blocked . | . . . . . Robot Schematics Acquired . | . . . . . Robots Built . | . . . . . Authchips . | . . . . . Time . | . . . . . Total Robot Build Rating . | . . . . . Part Schematics Acquired . | . . . . . Parts Built . | . . . . . Authchips . | . . . . . Time . | . . . . . Total Part Build Rating . | . . . . . Parts Repaired . | . . . . . Time . | . . . . . Parts Recycled . | . . . . . Recycled Matter . | . . . . . Retrieved Matter . | . . . . . Retrieved Components . | . . . . . Parts Scanalyzed . | . . . . . Part Schematics Acquired . | . . . . . Parts Damaged . | . . . . . Bothacking | -11 -10 -10 -9 -8 ------------ Run | Yrd Mat Min Mat Mat Used RIF Installer . | . . . . . Robots Hacked . | . . . . . Non-combat . | . . . . . Combat . | . . . . . Robot Hacks Applied . | . . . . . Relay Couplers Released . | . . . . . Fabnet Peak Effective % . | . . . . . Robots Rewired . | . . . . . Allies Hacked . | . . . . . Hacks Repelled . | . . . . . Allies | -11 -10 -10 -9 -8 -------- Run | Yrd Mat Min Mat Mat Total Allies . | . . . . . Largest Group . | . . . . . Highest-Rated Group . | . . . . . Highest-Rated Ally . | . . . . . Total Orders . | . . . . . Ally Attacks . | . . . . . Total Damage . | . . . . . Kills . | . . . . . Allies Corrupted . | . . . . . Allies Melted . | . . . . . Intel | -11 -10 -10 -9 -8 ------- Run | Yrd Mat Min Mat Mat Robot Analysis Total . | . . . . . Derelict Logs Recovered 2 | . . 2 . . Drone Launches . | . . . . . Drone Recoveries . | . . . . . Exploration | -11 -10 -10 -9 -8 ------------- Run | Yrd Mat Min Mat Mat Turns Passed 4006 | 70 393 813 1861 869 Spaces Moved 2330 | 52 233 578 1041 426 Core 18 | 11 1 . 5 1 Treads . | . . . . . Legs 398 | 41 232 125 . . Wheels . | . . . . . Hover . | . . . . . Flight 1914 | . . 453 1036 425 Fastest Speed 30 | 50 120 37 30 100 Average Speed 139 | 112 120 121 150 151 Slowest Speed 500 | 150 200 280 360 500 Overloaded Moves . | . . . . . Propulsion Burnouts . | . . . . . Robots Hopped . | . . . . . Cave-ins Triggered . | . . . . . Exploration Rate (%) 43 | 3 54 84 53 25 Regions Visited 4 Branch Regions 1 Pre-discovered Areas . | . . . . . Known Exits Taken 1 | . 1 . . . Unknown Exits Taken 3 | 1 . 1 1 . Scrap Searched . | . . . . . Spaces Dug . | . . . . . Terrain Destroyed 171 | . 5 25 105 36 Melee . | . . . . . Projectile 5 | . . . 2 3 AOE 166 | . 5 25 103 33 Terrain Rammed . | . . . . . Walls Destroyed . | . . . . . Machines Disabled . | . . . . . Actions | -11 -10 -10 -9 -8 --------- Run | Yrd Mat Min Mat Mat Total 2813 | 60 308 664 1219 562 Wait 234 | 1 47 43 75 68 Move 2326 | 51 232 577 1040 426 Hop . | . . . . . Pick Up 26 | 2 4 6 10 4 Fast Attach 33 | 6 6 9 11 1 Attach 23 | . . 5 8 10 Detach 9 | . . 4 3 2 Swap 4 | . . . 3 1 Drop 16 | . 1 4 11 . Fire 136 | . 18 14 57 47 Melee . | . . . . . Ram 6 | . . 2 1 3 Kick . | . . . . . Crush . | . . . . . Escape Stasis . | . . . . . Rewire . | . . . . . Trap . | . . . . . Miscellaneous . | . . . . . Route ------- -11/Scrapyard -10/Materials (discovered 3 exits: [*Mat] / *Min x2) -10/Mines (discovered 2 exits: [*Mat x2]) -9/Materials (discovered 3 exits: [*Mat x2] / Min) -8/Materials (discovered 2 exits: [*Fac] / *Sto) History --------- Turn | Location | Event 15 | -11/Scrapyard | Discovered new exit (range 15) 71 | -11/Scrapyard | Entered Materials 252 | -10/Materials | Discovered new exit (range 14) 314 | -10/Materials | Build established: Mutant 356 | -10/Materials | Discovered new exit (range 16) 408 | -10/Materials | Discovered new exit (range 8) 416 | -10/Materials | Identified exit to Mines 464 | -10/Materials | Entered Mines 505 | -10/Mines | Met a Derelict bent on vengeance 550 | -10/Mines | Assembled infested the area 698 | -10/Mines | Lost 4 parts (1p2n1w) 1010 | -10/Mines | Joined a pair of Derelicts in attacking an 0b10 outpost 1202 | -10/Mines | Build established: Scavenger-Mutant 1205 | -10/Mines | Discovered new exit (range 14) 1229 | -10/Mines | Learned Materials security intel 1248 | -10/Mines | Discovered new exit (range 11) 1267 | -10/Mines | Learned 2 Materials zone layouts 1277 | -10/Mines | Entered Materials 1277 | -9/Materials | Evolved 2 slots: Propulsion x1, Weapon x1 1278 | -9/Materials | Identified exit to Mines 1856 | -9/Materials | Lost 3 parts (1p2n) 1944 | -9/Materials | Discovered new exit (range 10) 2159 | -9/Materials | Build established: Scavenger-Skirmisher 2730 | -9/Materials | Build established: Skirmisher 3041 | -9/Materials | Discovered new exit (range 5) 3138 | -9/Materials | Entered another Materials area 3138 | -8/Materials | Evolved 2 slots: Propulsion x1, Weapon x1 3417 | -8/Materials | Discovered new exit (range 15) 3447 | -8/Materials | Build established: Scavenger-Skirmisher 3538 | -8/Materials | Identified exit to Storage 3977 | -8/Materials | Discovered new exit (range 13) 3980 | -8/Materials | Core integrity fell below 50% 4002 | -8/Materials | Core integrity fell below 20% 4007 | -8/Materials | Destroyed by C-17 Slicer with Blade Saw Last Messages --------------- 03993_ G-47 Trooper destroyed. 03994_ Imp. Signal Interpreter destroyed. 03994_ K-01 Serf collects debris. 03995_ H-61 Shepherd calls for reinforcements. 03995_ ALERT: Hostile activity reported, dispatching reinforcements to area. 03995_ Rocket Launcher destroyed. 03995_ Knocked back. 03997_ K-01 Serf collects debris. 03998_ U-05 Engineer lays Concrete. 03998_ Penetrated by Slug. 04000_ U-05 Engineer lays Concrete. 04001_ Knocked back. 04001_ Penetrated by Slug. 04002_ U-05 Engineer builds a Wall. 04003_ Slug penetrates C-17 Slicer. 04003_ U-05 Engineer destroyed. 04004_ Gauss Rifle severed. 04004_ Penetrated by Slug. 04004_ G-47 Trooper destroyed. Map ----- +----------------------------------------------------+ | ????????#?? ?"""""" # # """ # # | | #???????#???"?""""" + + # ! "" # ### | | ??????????????""""" # # ! # S"" ## ##?? | | ?#????????? ?"""""" # # =# "" ## #??? | | ?????????????? ?# ################### #??? | | ?????????????? ??# # ##?????????# #??# | | ?????????????#####?## # #?????#????# #??? | | ????????????????????# # #???????#??# #??? | | ?????????????????##?# + #??????????# #??? | | ????????????????????# # #?#????????# ###??? | | ????????????????????# # #?????#????# #????? | | ??????????########### ########??????????? ?????? | | ??????????# # #????????????????????????? | | ??????????# # #????????????????????????? | | ??????????# # #????????????????????????? | | ??????????# + #????????????????????????? | | ??????????# # #????????????????????????? | | ??????????# # #????????????????????????? | | ??????????# # #????????????????????????? | | ??????????# # ########?????????????????? | | ??????????########### # #?????????????????? | | ????????????????????# # """ =#?????????????????? | | ????????????????????# + """ #?????????????????? | | ????????????????????# ^# """ %#?????????????????? | | ????????????????????# # #?????????????????? | | ????????????????????# %%#@ ! #?????????????????? | | ????????????????????#% c#######?????????????????? | | ????????????????????#% ];#???????????????????????? | | ????????????????????#%]=##???????????????????????? | | ???????????????????# ==%#????????????????????????? | | ?????????????????? =%*! ???????????????????????? | | ???????????????? = ##??????????????????????? | | ???????????????# = ???????????????????????? | | ?????????????? H% #??????????????????????? | | ?????????? < h* ??????????????????????? | | ?????????# =%| #?????????????????????? | | ?????????####+### ####?????????????????????? | | ??????????? ?? k# !????????????????????????? | | ???????????"?? # ????????????????????????? | | ?????????????" ?# """ ????????????????????????? | | ????????????? ?# """ ????????????????????????? | | ??????????????? ??# ??? ????????????????????????? | | ??????????????????# ??? ????????????????????????? | | ??????????????????###????????????????????????????? | | ?????????????????????????????????????????????????? | | ?????????????????????????????????????????????????? | | ?????????????????????????????????????????????????? | | ?????????????????????????????????????????????????? | | ?????????????????????????????????????????????????? | | ?????????????????????????????????????????????????? | +----------------------------------------------------+ Best States ------------- Heat Dissipation 31 Energy Generation 14 Energy Capacity 160 Matter Stores 300 Matter Capacity 300 Sight Range 16 Terrain Scan Range 16 Terrain Scan Density 10 Evasion (%) 62 Item Schematics ----------------- None Robot Schematics ------------------ None Fabricated ------------ Nothing Alien Tech Used ----------------- None Achievements -------------- None Challenges ------------ None Game ------ Seed BoltFocalStabilizer Manual? 0 Play Time 00:30:32 Cumulative 19.0 hours Start 2025.01.07 @ 22:46:37 End 2025.01.07 @ 23:25:28 Sessions 1 Manual Loads 0 Difficulty Rogue Special Mode None Game No. 37 Rogue 37 Adventurer 0 Explorer 0 Win Type - Total 0 Types 0/0/0/0/0/0/0/0/0 Lore% 7 Gallery% 13 Achievement% 14 Wizard Run 0 Options --------- Layout 0 ASCII 0 Keyboard 1 Movement Numpad Keybinds 0 Fullscreen 1 Font 24/Smallcaps Map View 76x50 Zoom Use 0% Tactical HUD 1 Map Filters NONE Filters NONE Steam 1 RUN: a32f7539-ca35-4623-b808-e4be4a972cb7